[Event "Titled Tuesday Blitz February 28 Early 2023"]
[White "Cheng, Xiao"]
[Black "Novikov, Evgenij"]
[WhiteFideId "2022915"]
[BlackFideId "4125380"]
[WhiteElo "2318"]
[BlackElo "2242"]
[Result "1-0"]
[Round "02"]
[TimeControl "180+2"]
[Date "2023.02.28"]
[WhiteClock "0:00:16"]
[BlackClock "0:00:09"]

1. e4 {[%clk 0:03:00]}  c6 {[%clk 0:02:58]} 2. d4 {[%clk 0:02:59]}  d5 {[%clk 0:02:57]} 3. Nc3 {[%clk 0:02:56]}  a6 {[%clk 0:02:52]} 4. e5 {[%clk 0:02:52]}  Bf5 {[%clk 0:02:50]} 5. Nce2 {[%clk 0:02:45]}  e6 {[%clk 0:02:46]} 6. Ng3 {[%clk 0:02:44]}  Bg6 {[%clk 0:02:43]} 7. h4 {[%clk 0:02:44]}  h6 {[%clk 0:02:40]} 8. N1e2 {[%clk 0:02:44]}  Ne7 {[%clk 0:02:31]} 9. Nf4 {[%clk 0:02:44]}  Bh7 {[%clk 0:02:28]} 10. a3 {[%clk 0:02:23]}  c5 {[%clk 0:02:21]} 11. c3 {[%clk 0:02:19]}  Nbc6 {[%clk 0:02:15]} 12. Bd3 {[%clk 0:02:15]}  Bxd3 {[%clk 0:02:13]} 13. Qxd3 {[%clk 0:02:16]}  Qb6 {[%clk 0:01:58]} 14. dxc5 {[%clk 0:02:15]}  Qxc5 {[%clk 0:01:58]} 15. Be3 {[%clk 0:02:11]}  Qb5 {[%clk 0:01:49]} 16. Qxb5 {[%clk 0:02:06]}  axb5 {[%clk 0:01:50]} 17. Nd3 {[%clk 0:02:06]}  Nc8 {[%clk 0:01:37]} 18. h5 {[%clk 0:02:02]}  b4 {[%clk 0:01:23]} 19. cxb4 {[%clk 0:01:58]}  Nxb4 {[%clk 0:01:19]} 20. Nxb4 {[%clk 0:01:52]}  Bxb4+ {[%clk 0:01:18]} 21. Ke2 {[%clk 0:01:53]}  Ba5 {[%clk 0:01:12]} 22. Rhc1 {[%clk 0:01:53]}  Kd7 {[%clk 0:01:09]} 23. Kd3 {[%clk 0:01:40]}  Bb6 {[%clk 0:01:02]} 24. Rxc8 {[%clk 0:01:24]}  Rhxc8 {[%clk 0:00:48]} 25. Bxb6 {[%clk 0:01:24]}  Ra4 {[%clk 0:00:43]} 26. Bd4 {[%clk 0:01:20]}  b5 {[%clk 0:00:39]} 27. b3 {[%clk 0:01:15]}  Ra6 {[%clk 0:00:36]} 28. Ne2 {[%clk 0:01:02]}  Rac6 {[%clk 0:00:35]} 29. Nc3 {[%clk 0:01:02]}  Rb8 {[%clk 0:00:32]} 30. b4 {[%clk 0:00:48]}  g6 {[%clk 0:00:30]} 31. hxg6 {[%clk 0:00:46]}  fxg6 {[%clk 0:00:30]} 32. Bc5 {[%clk 0:00:45]}  Rcc8 {[%clk 0:00:23]} 33. Ne2 {[%clk 0:00:44]}  Rg8 {[%clk 0:00:19]} 34. a4 {[%clk 0:00:43]}  bxa4 {[%clk 0:00:13]} 35. Rxa4 {[%clk 0:00:42]}  Rb7 {[%clk 0:00:14]} 36. Ra6 {[%clk 0:00:38]}  g5 {[%clk 0:00:09]} 37. Rd6+ {[%clk 0:00:38]}  Kc8 {[%clk 0:00:06]} 38. Rxe6 {[%clk 0:00:38]}  h5 {[%clk 0:00:07]} 39. Rh6 {[%clk 0:00:36]}  h4 {[%clk 0:00:07]} 40. e6 {[%clk 0:00:36]}  Kd8 {[%clk 0:00:05]} 41. e7+ {[%clk 0:00:36]}  Ke8 {[%clk 0:00:05]} 42. Nd4 {[%clk 0:00:35]}  Rxe7 {[%clk 0:00:04]} 43. Bxe7 {[%clk 0:00:35]}  Kxe7 {[%clk 0:00:05]} 44. b5 {[%clk 0:00:34]}  Kd7 {[%clk 0:00:05]} 45. b6 {[%clk 0:00:34]}  Rb8 {[%clk 0:00:04]} 46. Rh7+ {[%clk 0:00:30]}  Kd6 {[%clk 0:00:04]} 47. b7 {[%clk 0:00:30]}  Kc5 {[%clk 0:00:04]} 48. Rc7+ {[%clk 0:00:26]}  Kb6 {[%clk 0:00:04]} 49. Rg7 {[%clk 0:00:24]}  Rxb7 {[%clk 0:00:04]} 50. Rxg5 {[%clk 0:00:23]}  Kc5 {[%clk 0:00:03]} 51. Ne6+ {[%clk 0:00:17]}  Kd6 {[%clk 0:00:03]} 52. Nf4 {[%clk 0:00:17]}  Rb3+ {[%clk 0:00:03]} 53. Ke2 {[%clk 0:00:17]}  Rb2+ {[%clk 0:00:03]} 54. Kf3 {[%clk 0:00:17]}  Rb4 {[%clk 0:00:03]} 55. Rxd5+ {[%clk 0:00:17]}  Ke7 {[%clk 0:00:03]} 56. Rh5 {[%clk 0:00:17]}  Rb2 {[%clk 0:00:03]} 57. Rxh4 {[%clk 0:00:17]}  Kf6 {[%clk 0:00:04]} 58. Rh6+ {[%clk 0:00:16]}  Kg5 {[%clk 0:00:04]} 59. Rg6+ {[%clk 0:00:16]}  Kf5 {[%clk 0:00:04]} 60. g4+ {[%clk 0:00:15]}  Ke5 {[%clk 0:00:05]} 61. Re6+ {[%clk 0:00:16]}  Kd4 {[%clk 0:00:05]} 62. Re4+ {[%clk 0:00:17]}  Kc3 {[%clk 0:00:04]} 63. g5 {[%clk 0:00:17]}  Rb7 {[%clk 0:00:04]} 64. g6 {[%clk 0:00:17]}  Rg7 {[%clk 0:00:04]} 65. Kg4 {[%clk 0:00:17]}  Kd2 {[%clk 0:00:03]} 66. Kg5 {[%clk 0:00:18]}  Kd1 {[%clk 0:00:04]} 67. Kf6 {[%clk 0:00:18]}  Rg8 {[%clk 0:00:04]} 68. g7 {[%clk 0:00:17]}  Kd2 {[%clk 0:00:04]} 69. Kf7 {[%clk 0:00:17]}  Rc8 {[%clk 0:00:04]} 70. g8=Q {[%clk 0:00:18]}  Rxg8 {[%clk 0:00:03]} 71. Kxg8 {[%clk 0:00:18]}  Kc3 {[%clk 0:00:04]} 72. Ne2+ {[%clk 0:00:17]}  Kd2 {[%clk 0:00:05]} 73. Re3 {[%clk 0:00:18]}  Ke1 {[%clk 0:00:05]} 74. f4 {[%clk 0:00:17]}  Kf2 {[%clk 0:00:05]} 75. Re7 {[%clk 0:00:16]}  Kf3 {[%clk 0:00:06]} 76. f5 {[%clk 0:00:17]}  Kg4 {[%clk 0:00:06]} 77. f6 {[%clk 0:00:18]}  Kg5 {[%clk 0:00:06]} 78. f7 {[%clk 0:00:19]}  Kg6 {[%clk 0:00:07]} 79. f8=Q {[%clk 0:00:19]}  Kg5 {[%clk 0:00:07]} 80. Qg7+ {[%clk 0:00:19]}  Kf5 {[%clk 0:00:07]} 81. Rf7+ {[%clk 0:00:19]}  Ke4 {[%clk 0:00:07]} 82. Ng3+ {[%clk 0:00:18]}  Ke3 {[%clk 0:00:07]} 83. Qe5+ {[%clk 0:00:17]}  Kd3 {[%clk 0:00:08]} 84. Rd7+ {[%clk 0:00:18]}  Kc4 {[%clk 0:00:08]} 85. Qc7+ {[%clk 0:00:17]}  Kb5 {[%clk 0:00:09]} 86. Rd8 {[%clk 0:00:17]}  Ka6 {[%clk 0:00:09]} 87. Rd6+ {[%clk 0:00:15]}  Kb5 {[%clk 0:00:09]} 88. Rb6+ {[%clk 0:00:15]}  Ka5 {[%clk 0:00:09]} 89. Qa7# {[%clk 0:00:16]} 1-0


[Site "https://www.chess.com"]

[Event "Titled Tuesday Blitz February 28 Early 2023"]
[White "Wilson, Elvin"]
[Black "Kalajzic, Ivan"]
[WhiteFideId "2014874"]
[BlackFideId "14506378"]
[WhiteElo "2309"]
[BlackElo "2203"]
[Result "0-1"]
[Round "02"]
[TimeControl "180+2"]
[Date "2023.02.28"]
[WhiteClock "0:01:51"]
[BlackClock "0:02:12"]

1. c4 {[%clk 0:02:56]}  Nc6 {[%clk 0:02:59]} 2. g3 {[%clk 0:02:54]}  e5 {[%clk 0:03:00]} 3. Bg2 {[%clk 0:02:52]}  Bc5 {[%clk 0:03:00]} 4. Nc3 {[%clk 0:02:52]}  d6 {[%clk 0:03:00]} 5. Nf3 {[%clk 0:02:51]}  Bg4 {[%clk 0:03:00]} 6. h3 {[%clk 0:02:48]}  Bf5 {[%clk 0:02:59]} 7. O-O {[%clk 0:02:48]}  Qd7 {[%clk 0:02:59]} 8. Kh2 {[%clk 0:02:46]}  h5 {[%clk 0:02:50]} 9. d3 {[%clk 0:02:45]}  Nh6 {[%clk 0:02:40]} 10. e3 {[%clk 0:02:37]}  h4 {[%clk 0:02:34]} 11. g4 {[%clk 0:02:27]}  Nxg4+ {[%clk 0:02:21]} 12. hxg4 {[%clk 0:02:27]}  h3 {[%clk 0:02:18]} 13. gxf5 {[%clk 0:02:00]}  hxg2+ {[%clk 0:02:15]} 14. Kxg2 {[%clk 0:02:00]}  Qxf5 {[%clk 0:02:14]} 15. Rg1 {[%clk 0:01:51]}  Qh3# {[%clk 0:02:12]} 0-1


[Site "https://www.chess.com"]

[Event "Titled Tuesday Blitz February 28 Early 2023"]
[White "Omelja, Artem"]
[Black "Antonio, Jorge Carlos"]
[WhiteFideId "14119846"]
[BlackFideId "113190"]
[WhiteElo "2404"]
[BlackElo "2247"]
[Result "1/2-1/2"]
[Round "02"]
[TimeControl "180+2"]
[Date "2023.02.28"]
[WhiteClock "0:01:40"]
[BlackClock "0:01:09"]

1. e4 {[%clk 0:03:00]}  c5 {[%clk 0:02:58]} 2. Nf3 {[%clk 0:03:00]}  e6 {[%clk 0:02:55]} 3. d3 {[%clk 0:03:00]}  Nc6 {[%clk 0:02:53]} 4. g3 {[%clk 0:03:00]}  d6 {[%clk 0:02:52]} 5. Bg2 {[%clk 0:03:00]}  g6 {[%clk 0:02:52]} 6. O-O {[%clk 0:03:01]}  Bg7 {[%clk 0:02:52]} 7. Qe2 {[%clk 0:03:00]}  Nge7 {[%clk 0:02:52]} 8. c3 {[%clk 0:03:00]}  O-O {[%clk 0:02:41]} 9. h4 {[%clk 0:03:00]}  e5 {[%clk 0:02:28]} 10. h5 {[%clk 0:02:56]}  gxh5 {[%clk 0:02:25]} 11. Nh4 {[%clk 0:02:55]}  Bg4 {[%clk 0:02:20]} 12. f3 {[%clk 0:02:53]}  Be6 {[%clk 0:02:16]} 13. Nd2 {[%clk 0:02:45]}  Ng6 {[%clk 0:02:16]} 14. Nf5 {[%clk 0:02:36]}  Nce7 {[%clk 0:02:11]} 15. Nxg7 {[%clk 0:02:29]}  Kxg7 {[%clk 0:02:11]} 16. f4 {[%clk 0:02:30]}  Bg4 {[%clk 0:02:04]} 17. Qf2 {[%clk 0:02:28]}  f5 {[%clk 0:01:57]} 18. exf5 {[%clk 0:02:22]}  Nxf5 {[%clk 0:01:56]} 19. Ne4 {[%clk 0:02:22]}  h4 {[%clk 0:01:49]} 20. gxh4 {[%clk 0:02:22]}  Qxh4 {[%clk 0:01:45]} 21. fxe5 {[%clk 0:02:16]}  dxe5 {[%clk 0:01:40]} 22. Bg5 {[%clk 0:02:08]}  Qxf2+ {[%clk 0:01:35]} 23. Rxf2 {[%clk 0:02:09]}  h6 {[%clk 0:01:31]} 24. Bd2 {[%clk 0:02:02]}  Nfh4 {[%clk 0:01:27]} 25. Raf1 {[%clk 0:01:54]}  Rxf2 {[%clk 0:01:22]} 26. Rxf2 {[%clk 0:01:55]}  Rd8 {[%clk 0:01:18]} 27. Nxc5 {[%clk 0:01:53]}  b6 {[%clk 0:01:15]} 28. Ne4 {[%clk 0:01:39]}  Rxd3 {[%clk 0:01:14]} 29. Nf6 {[%clk 0:01:40]}  Nf3+ {[%clk 0:01:09]} 1/2-1/2


[Site "https://www.chess.com"]

[Event "Titled Tuesday Blitz February 28 Early 2023"]
[White "Eswaran, Ashritha"]
[Black "Alhadad, Mahmoud"]
[WhiteFideId "2080788"]
[BlackFideId "11501863"]
[WhiteElo "2505"]
[BlackElo "1955"]
[Result "1-0"]
[Round "02"]
[TimeControl "180+2"]
[Date "2023.02.28"]
[WhiteClock "0:00:58"]
[BlackClock "0:00:03"]

1. e4 {[%clk 0:03:00]}  d5 {[%clk 0:03:00]} 2. exd5 {[%clk 0:03:00]}  Nf6 {[%clk 0:03:01]} 3. Bb5+ {[%clk 0:02:59]}  Bd7 {[%clk 0:03:00]} 4. Be2 {[%clk 0:02:59]}  Nxd5 {[%clk 0:02:59]} 5. Nf3 {[%clk 0:02:59]}  Bg4 {[%clk 0:02:58]} 6. O-O {[%clk 0:02:59]}  e6 {[%clk 0:02:58]} 7. d4 {[%clk 0:03:00]}  Be7 {[%clk 0:02:58]} 8. c4 {[%clk 0:03:00]}  Nb6 {[%clk 0:02:58]} 9. b3 {[%clk 0:03:00]}  O-O {[%clk 0:02:57]} 10. Bb2 {[%clk 0:03:00]}  Bf6 {[%clk 0:02:57]} 11. Nbd2 {[%clk 0:02:58]}  Nc6 {[%clk 0:02:56]} 12. Ne4 {[%clk 0:02:56]}  Bxf3 {[%clk 0:02:38]} 13. Nxf6+ {[%clk 0:02:55]}  Qxf6 {[%clk 0:02:39]} 14. Bxf3 {[%clk 0:02:55]}  Rad8 {[%clk 0:02:35]} 15. Bxc6 {[%clk 0:02:29]}  bxc6 {[%clk 0:02:36]} 16. Qh5 {[%clk 0:02:28]}  Qf5 {[%clk 0:02:18]} 17. Qxf5 {[%clk 0:02:27]}  exf5 {[%clk 0:02:19]} 18. Rfe1 {[%clk 0:02:27]}  Rfe8 {[%clk 0:02:19]} 19. Bc3 {[%clk 0:02:22]}  f6 {[%clk 0:02:11]} 20. Kf1 {[%clk 0:02:21]}  Kf7 {[%clk 0:02:11]} 21. Rxe8 {[%clk 0:02:19]}  Rxe8 {[%clk 0:02:12]} 22. Re1 {[%clk 0:02:18]}  Rxe1+ {[%clk 0:02:11]} 23. Kxe1 {[%clk 0:02:18]}  Nd7 {[%clk 0:02:11]} 24. Ba5 {[%clk 0:02:14]}  Nb6 {[%clk 0:02:09]} 25. Bxb6 {[%clk 0:02:13]}  cxb6 {[%clk 0:02:07]} 26. Kd2 {[%clk 0:02:14]}  Ke6 {[%clk 0:02:02]} 27. f4 {[%clk 0:02:07]}  g6 {[%clk 0:01:58]} 28. Kc3 {[%clk 0:02:05]}  Kd6 {[%clk 0:01:53]} 29. a4 {[%clk 0:02:01]}  h5 {[%clk 0:01:28]} 30. g3 {[%clk 0:01:56]}  a5 {[%clk 0:01:14]} 31. b4 {[%clk 0:01:49]}  g5 {[%clk 0:01:11]} 32. c5+ {[%clk 0:01:41]}  bxc5 {[%clk 0:01:06]} 33. bxc5+ {[%clk 0:01:32]}  Kd5 {[%clk 0:00:44]} 34. h4 {[%clk 0:01:21]}  g4 {[%clk 0:00:09]} 35. Kd3 {[%clk 0:01:20]}  Ke6 {[%clk 0:00:09]} 36. Kc4 {[%clk 0:01:18]}  Kd7 {[%clk 0:00:09]} 37. d5 {[%clk 0:01:18]}  Kc7 {[%clk 0:00:08]} 38. dxc6 {[%clk 0:01:17]}  Kxc6 {[%clk 0:00:08]} 39. Kd4 {[%clk 0:01:18]}  Kc7 {[%clk 0:00:08]} 40. Kd5 {[%clk 0:01:18]}  Kd7 {[%clk 0:00:08]} 41. c6+ {[%clk 0:01:18]}  Kc7 {[%clk 0:00:08]} 42. Kc5 {[%clk 0:00:58]}  Kb8 {[%clk 0:00:03]} 43. Kb6 {[%clk 0:00:58]}  Kc8 {[%clk 0:00:03]} 44. c7 {[%clk 0:00:57]}  Kd7 {[%clk 0:00:02]} 45. Kb7 {[%clk 0:00:58]}  Kd6 {[%clk 0:00:03]} 46. c8=Q {[%clk 0:00:58]}  Kd5 {[%clk 0:00:03]} 47. Qxf5+ {[%clk 0:00:58]} 1-0


[Site "https://www.chess.com"]

[Event "Titled Tuesday Blitz February 28 Early 2023"]
[White "Omariev, Maksim"]
[Black "Liu, Casper"]
[WhiteFideId "4193423"]
[BlackFideId "1454153"]
[WhiteElo "2504"]
[BlackElo "2221"]
[Result "0-1"]
[Round "02"]
[TimeControl "180+2"]
[Date "2023.02.28"]
[WhiteClock "0:00:04"]
[BlackClock "0:00:20"]

1. g4 {[%clk 0:03:00]}  d5 {[%clk 0:02:54]} 2. Bg2 {[%clk 0:03:00]}  Bxg4 {[%clk 0:02:54]} 3. c4 {[%clk 0:02:57]}  e6 {[%clk 0:02:43]} 4. Qb3 {[%clk 0:02:56]}  Nc6 {[%clk 0:02:34]} 5. cxd5 {[%clk 0:02:44]}  exd5 {[%clk 0:01:52]} 6. Bxd5 {[%clk 0:02:44]}  Nd4 {[%clk 0:01:51]} 7. Qa4+ {[%clk 0:01:44]}  Qd7 {[%clk 0:01:39]} 8. Qxd4 {[%clk 0:01:39]}  Be6 {[%clk 0:01:39]} 9. Nc3 {[%clk 0:01:33]}  Nf6 {[%clk 0:01:36]} 10. Nf3 {[%clk 0:00:50]}  Nxd5 {[%clk 0:01:34]} 11. b3 {[%clk 0:00:35]}  Be7 {[%clk 0:01:22]} 12. Nxd5 {[%clk 0:00:25]}  Qxd5 {[%clk 0:01:22]} 13. Qxg7 {[%clk 0:00:20]}  O-O-O {[%clk 0:01:21]} 14. Bb2 {[%clk 0:00:15]}  Rhg8 {[%clk 0:01:21]} 15. Qe5 {[%clk 0:00:15]}  Qd7 {[%clk 0:01:10]} 16. O-O-O {[%clk 0:00:09]}  Bd6 {[%clk 0:01:04]} 17. Qa5 {[%clk 0:00:07]}  Kb8 {[%clk 0:01:01]} 18. Kb1 {[%clk 0:00:07]}  b6 {[%clk 0:00:53]} 19. Qa6 {[%clk 0:00:06]}  Bd5 {[%clk 0:00:52]} 20. Ng1 {[%clk 0:00:02]}  Bxh1 {[%clk 0:00:51]} 21. f3 {[%clk 0:00:02]}  Bxh2 {[%clk 0:00:49]} 22. Bc3 {[%clk 0:00:01]}  Rxg1 {[%clk 0:00:48]} 23. Rxg1 {[%clk 0:00:01]}  Bxg1 {[%clk 0:00:49]} 24. Qc4 {[%clk 0:00:02]}  Qf5+ {[%clk 0:00:47]} 25. Kb2 {[%clk 0:00:01]}  Bc5 {[%clk 0:00:45]} 26. Qh4 {[%clk 0:00:01]}  Re8 {[%clk 0:00:32]} 27. Qxh1 {[%clk 0:00:02]}  Rxe2 {[%clk 0:00:32]} 28. Qh4 {[%clk 0:00:01]}  Qd3 {[%clk 0:00:30]} 29. Qa4 {[%clk 0:00:01]}  Kb7 {[%clk 0:00:19]} 30. Qf4 {[%clk 0:00:01]}  Be3 {[%clk 0:00:17]} 31. Qc4 {[%clk 0:00:01]}  Qxc4 {[%clk 0:00:16]} 32. bxc4 {[%clk 0:00:02]}  Bxd2 {[%clk 0:00:17]} 33. Bd4 {[%clk 0:00:02]}  Be3+ {[%clk 0:00:17]} 34. Kc3 {[%clk 0:00:03]}  Bxd4+ {[%clk 0:00:18]} 35. Kd3 {[%clk 0:00:04]}  Rxa2 {[%clk 0:00:18]} 36. Kxd4 {[%clk 0:00:04]}  a5 {[%clk 0:00:19]} 37. Kd5 {[%clk 0:00:05]}  a4 {[%clk 0:00:20]} 38. f4 {[%clk 0:00:05]}  a3 {[%clk 0:00:20]} 39. c5 {[%clk 0:00:06]}  Rd2+ {[%clk 0:00:21]} 40. Kc4 {[%clk 0:00:07]}  a2 {[%clk 0:00:21]} 41. c6+ {[%clk 0:00:07]}  Kxc6 {[%clk 0:00:21]} 42. f5 {[%clk 0:00:08]}  a1=Q {[%clk 0:00:20]} 43. f6 {[%clk 0:00:09]}  Qc1+ {[%clk 0:00:19]} 44. Kb3 {[%clk 0:00:10]}  Rb2+ {[%clk 0:00:19]} 45. Ka4 {[%clk 0:00:04]}  Qa1# {[%clk 0:00:20]} 0-1


[Site "https://www.chess.com"]

[Event "Titled Tuesday Blitz February 28 Early 2023"]
[White "Buscar, Michael"]
[Black "Sokac, Marko"]
[WhiteFideId "2603616"]
[BlackFideId "14531356"]
[WhiteElo "2010"]
[BlackElo "2355"]
[Result "1-0"]
[Round "02"]
[TimeControl "180+2"]
[Date "2023.02.28"]
[WhiteClock "0:00:09"]
[BlackClock "0:00:06"]

1. d4 {[%clk 0:02:38]}  Nf6 {[%clk 0:02:59]} 2. c4 {[%clk 0:02:38]}  e5 {[%clk 0:03:00]} 3. dxe5 {[%clk 0:02:37]}  Ng4 {[%clk 0:03:00]} 4. Nf3 {[%clk 0:02:37]}  Bc5 {[%clk 0:03:00]} 5. e3 {[%clk 0:02:37]}  Nc6 {[%clk 0:03:00]} 6. Be2 {[%clk 0:02:37]}  O-O {[%clk 0:03:00]} 7. O-O {[%clk 0:02:34]}  Re8 {[%clk 0:03:00]} 8. a3 {[%clk 0:02:34]}  a5 {[%clk 0:02:59]} 9. b3 {[%clk 0:02:32]}  Ncxe5 {[%clk 0:02:59]} 10. Bb2 {[%clk 0:02:32]}  Ra6 {[%clk 0:02:59]} 11. Nbd2 {[%clk 0:02:30]}  Rh6 {[%clk 0:02:58]} 12. h3 {[%clk 0:02:17]}  Nxf3+ {[%clk 0:02:47]} 13. Nxf3 {[%clk 0:02:13]}  Nf6 {[%clk 0:02:42]} 14. Qe1 {[%clk 0:02:04]}  Ne4 {[%clk 0:02:34]} 15. Qxa5 {[%clk 0:02:00]}  d6 {[%clk 0:02:32]} 16. Rad1 {[%clk 0:01:50]}  Ng5 {[%clk 0:02:10]} 17. Qc3 {[%clk 0:01:34]}  Nxf3+ {[%clk 0:01:54]} 18. Bxf3 {[%clk 0:01:33]}  Qg5 {[%clk 0:01:54]} 19. Rd5 {[%clk 0:01:28]}  Qg6 {[%clk 0:01:53]} 20. Kh2 {[%clk 0:01:14]}  Bd7 {[%clk 0:01:43]} 21. b4 {[%clk 0:01:12]}  Ba7 {[%clk 0:01:42]} 22. Rd2 {[%clk 0:00:46]}  c6 {[%clk 0:01:32]} 23. Rxd6 {[%clk 0:00:43]}  Bb8 {[%clk 0:01:32]} 24. c5 {[%clk 0:00:42]}  Bxd6+ {[%clk 0:01:22]} 25. cxd6 {[%clk 0:00:43]}  Qxd6+ {[%clk 0:01:21]} 26. Kh1 {[%clk 0:00:39]}  Qg6 {[%clk 0:01:12]} 27. Kh2 {[%clk 0:00:34]}  Qd6+ {[%clk 0:00:56]} 28. Kh1 {[%clk 0:00:34]}  Qf6 {[%clk 0:00:51]} 29. Qxf6 {[%clk 0:00:26]}  gxf6 {[%clk 0:00:51]} 30. Rd1 {[%clk 0:00:25]}  Be6 {[%clk 0:00:50]} 31. b5 {[%clk 0:00:23]}  cxb5 {[%clk 0:00:48]} 32. Bxb7 {[%clk 0:00:22]}  Rb8 {[%clk 0:00:32]} 33. Bc6 {[%clk 0:00:21]}  Bc4 {[%clk 0:00:29]} 34. Rd6 {[%clk 0:00:18]}  Kg7 {[%clk 0:00:23]} 35. Bc3 {[%clk 0:00:15]}  Rc8 {[%clk 0:00:19]} 36. Kh2 {[%clk 0:00:14]}  Rg6 {[%clk 0:00:19]} 37. g4 {[%clk 0:00:13]}  h6 {[%clk 0:00:19]} 38. Kg3 {[%clk 0:00:13]}  h5 {[%clk 0:00:18]} 39. f4 {[%clk 0:00:12]}  hxg4 {[%clk 0:00:18]} 40. hxg4 {[%clk 0:00:12]}  Rh8 {[%clk 0:00:18]} 41. Bd4 {[%clk 0:00:11]}  Rgh6 {[%clk 0:00:17]} 42. Kf3 {[%clk 0:00:11]}  Rh3+ {[%clk 0:00:16]} 43. Ke4 {[%clk 0:00:10]}  Re8+ {[%clk 0:00:17]} 44. Kf5 {[%clk 0:00:10]}  Bd3+ {[%clk 0:00:15]} 45. e4 {[%clk 0:00:08]}  Re6 {[%clk 0:00:14]} 46. Rxe6 {[%clk 0:00:06]}  fxe6+ {[%clk 0:00:15]} 47. Kxe6 {[%clk 0:00:07]}  Rh6 {[%clk 0:00:12]} 48. g5 {[%clk 0:00:07]}  Rh4 {[%clk 0:00:12]} 49. gxf6+ {[%clk 0:00:06]}  Kg6 {[%clk 0:00:12]} 50. Be8+ {[%clk 0:00:05]}  Kh7 {[%clk 0:00:11]} 51. f7 {[%clk 0:00:03]}  Bc4+ {[%clk 0:00:11]} 52. Ke7 {[%clk 0:00:03]}  Bxf7 {[%clk 0:00:08]} 53. Bxf7 {[%clk 0:00:02]}  Rxf4 {[%clk 0:00:08]} 54. Bd5 {[%clk 0:00:02]}  Kg6 {[%clk 0:00:08]} 55. Kd6 {[%clk 0:00:02]}  Rf1 {[%clk 0:00:07]} 56. Kc5 {[%clk 0:00:03]}  Rb1 {[%clk 0:00:07]} 57. Bc3 {[%clk 0:00:03]}  Kg5 {[%clk 0:00:06]} 58. Bb4 {[%clk 0:00:04]}  Kf4 {[%clk 0:00:06]} 59. Kxb5 {[%clk 0:00:05]}  Ke5 {[%clk 0:00:07]} 60. a4 {[%clk 0:00:05]}  Kd4 {[%clk 0:00:06]} 61. a5 {[%clk 0:00:06]}  Ra1 {[%clk 0:00:06]} 62. a6 {[%clk 0:00:06]}  Ke5 {[%clk 0:00:06]} 63. Kb6 {[%clk 0:00:06]}  Rb1 {[%clk 0:00:06]} 64. Kc5 {[%clk 0:00:07]}  Rc1+ {[%clk 0:00:06]} 65. Kb5 {[%clk 0:00:07]}  Ra1 {[%clk 0:00:06]} 66. Kc6 {[%clk 0:00:08]}  Rxa6+ {[%clk 0:00:06]} 67. Kc5 {[%clk 0:00:08]}  Ra1 {[%clk 0:00:06]} 68. Bc3+ {[%clk 0:00:08]}  Kf4 {[%clk 0:00:06]} 69. Bxa1 {[%clk 0:00:09]} 1-0


[Site "https://www.chess.com"]

[Event "Titled Tuesday Blitz February 28 Early 2023"]
[White "Belov, Alexei"]
[Black "Gharamian, Tigran"]
[WhiteFideId "4128206"]
[BlackFideId "13301527"]
[WhiteElo "2500"]
[BlackElo "2638"]
[Result "1-0"]
[Round "02"]
[TimeControl "180+2"]
[Date "2023.02.28"]
[WhiteClock "0:00:31"]
[BlackClock "0:00:14"]

1. e4 {[%clk 0:03:00]}  c6 {[%clk 0:02:58]} 2. d4 {[%clk 0:03:00]}  d5 {[%clk 0:02:59]} 3. Nd2 {[%clk 0:03:01]}  dxe4 {[%clk 0:02:59]} 4. Nxe4 {[%clk 0:03:01]}  Nf6 {[%clk 0:02:59]} 5. Nxf6+ {[%clk 0:03:01]}  exf6 {[%clk 0:03:00]} 6. c3 {[%clk 0:03:02]}  Bd6 {[%clk 0:02:59]} 7. Bd3 {[%clk 0:03:02]}  O-O {[%clk 0:02:59]} 8. Ne2 {[%clk 0:03:03]}  Re8 {[%clk 0:02:57]} 9. Qc2 {[%clk 0:03:04]}  h5 {[%clk 0:02:56]} 10. Be3 {[%clk 0:03:04]}  Nd7 {[%clk 0:02:55]} 11. O-O-O {[%clk 0:03:04]}  Nf8 {[%clk 0:02:54]} 12. c4 {[%clk 0:03:04]}  Be6 {[%clk 0:02:49]} 13. Nc3 {[%clk 0:03:04]}  Qa5 {[%clk 0:02:42]} 14. a3 {[%clk 0:02:53]}  Bg4 {[%clk 0:02:28]} 15. Rd2 {[%clk 0:02:50]}  b5 {[%clk 0:02:25]} 16. c5 {[%clk 0:02:30]}  Be7 {[%clk 0:02:08]} 17. d5 {[%clk 0:02:27]}  cxd5 {[%clk 0:01:53]} 18. Nxd5 {[%clk 0:02:25]}  Rac8 {[%clk 0:01:48]} 19. Kb1 {[%clk 0:02:09]}  Be6 {[%clk 0:01:43]} 20. Be4 {[%clk 0:01:45]}  f5 {[%clk 0:01:24]} 21. Nxe7+ {[%clk 0:01:41]}  Rxe7 {[%clk 0:01:23]} 22. Bxf5 {[%clk 0:01:41]}  b4 {[%clk 0:01:19]} 23. Bxe6 {[%clk 0:01:30]}  Nxe6 {[%clk 0:01:16]} 24. axb4 {[%clk 0:01:27]}  Qxb4 {[%clk 0:01:16]} 25. Rhd1 {[%clk 0:01:26]}  Rb7 {[%clk 0:00:58]} 26. c6 {[%clk 0:01:20]}  Rbc7 {[%clk 0:00:53]} 27. Rd6 {[%clk 0:01:19]}  Qb5 {[%clk 0:00:48]} 28. Rc1 {[%clk 0:01:10]}  a5 {[%clk 0:00:44]} 29. Qc4 {[%clk 0:01:02]}  Qf5+ {[%clk 0:00:43]} 30. Ka1 {[%clk 0:00:59]}  Qe5 {[%clk 0:00:39]} 31. Rd5 {[%clk 0:00:56]}  Qxh2 {[%clk 0:00:36]} 32. Qb5 {[%clk 0:00:46]}  Qxg2 {[%clk 0:00:32]} 33. Bb6 {[%clk 0:00:44]}  h4 {[%clk 0:00:26]} 34. Bxc7 {[%clk 0:00:41]}  Rxc7 {[%clk 0:00:22]} 35. Rd7 {[%clk 0:00:40]}  h3 {[%clk 0:00:17]} 36. Rxc7 {[%clk 0:00:37]}  Nxc7 {[%clk 0:00:18]} 37. Qb8+ {[%clk 0:00:37]}  Kh7 {[%clk 0:00:19]} 38. Qxc7 {[%clk 0:00:36]}  h2 {[%clk 0:00:18]} 39. Qd7 {[%clk 0:00:34]}  h1=Q {[%clk 0:00:17]} 40. Rxh1+ {[%clk 0:00:35]}  Qxh1+ {[%clk 0:00:17]} 41. Ka2 {[%clk 0:00:35]}  Qe4 {[%clk 0:00:16]} 42. c7 {[%clk 0:00:32]}  Qc4+ {[%clk 0:00:16]} 43. Kb1 {[%clk 0:00:32]}  Qf1+ {[%clk 0:00:15]} 44. Kc2 {[%clk 0:00:31]}  Qxf2+ {[%clk 0:00:14]} 45. Kc3 {[%clk 0:00:32]}  Qf3+ {[%clk 0:00:14]} 46. Qd3+ {[%clk 0:00:31]} 1-0


[Site "https://www.chess.com"]